bitfinex/quotes_SOLUSD_20251106
["timestamp","ask_amount","ask_price","bid_price","bid_amount"]
[1762471073445,17.38882769,154.36,154.33,0.7]
[1762471073651,20.60677195,154.36,154.33,0.7]
[1762471073854,23.80994426,154.34,154.33,0.7]
[1762471074147,31.40994426,154.34,154.33,0.7]
[1762471074337,37.88914602,154.34,154.33,0.7]
[1762471074743,47.67797371,154.34,154.33,0.7]
[1762471074941,47.67797371,154.34,154.31,0.7]
[1762471075137,3.21794426,154.33,154.31,0.7]
[1762471075343,7.6,154.32,154.31,0.7]
[1762471075750,10.81794426,154.32,154.31,0.7]
[1762471076252,17.29798573,154.32,154.31,0.7]
[1762471077044,7.6,154.32,154.31,0.7]
[1762471077662,7.6,154.32,154.28,0.1]
[1762471077663,30.38082769,154.29,154.28,0.1]
[1762471077828,34.40893463,154.29,154.28,1e-08]
[1762471078031,35.10893463,154.29,154.28,1e-08]
[1762471078233,49.21023607,154.29,154.28,1e-08]
[1762471078554,48.71023607,154.29,154.28,1e-08]
[1762471078859,48.87979208,154.29,154.28,1e-08]
[1762471079059,9.78882769,154.28,154.21,0.7]
[1762471079256,13.00677195,154.22,154.21,0.7]
[1762471079552,20.62677195,154.22,154.21,0.7]
[1762471079758,10.83794426,154.22,154.21,0.7]
[1762471080340,15.19005537,154.22,154.21,0.7]
[1762471080547,15.19005537,154.22,154.18,53.08]
[1762471080753,7.57005537,154.21,154.19,0.7]
[1762471081063,7.57005537,154.23,154.19,0.7]
[1762471081449,7.62,154.22,154.19,0.7]
[1762471081951,7.57005537,154.22,154.19,0.7]
[1762471082156,7.62,154.21,154.19,0.7]
[1762471082665,9.78882769,154.19,154.12,0.7]
[1762471082842,9.78882769,154.19,154.06,4.85057375]
[1762471082843,20.592,154.15,154.06,4.85057375]
[1762471083038,20.592,154.15,154.03,24.07207036]
[1762471083039,4.85057375,154.1,154.03,24.07207036]
[1762471083261,4.85057375,154.1,154.04,5.55057375]
[1762471083562,4.85057375,154.11,154.05,4.85057375]
[1762471083750,4.85057375,154.12,154.05,5.55057375]
[1762471083952,4.85057375,154.11,154.06,22.71842139]
[1762471084148,4.85057375,154.11,154.03,0.64922417]
[1762471084351,9.78882769,154.09,154.0,73.19999999]
[1762471084555,7.72,154.11,154.04,4.85057375]
[1762471084851,12.57057375,154.11,154.0,105.75606109]
[1762471085061,4.85057375,154.11,154.04,4.85057375]
[1762471085782,0.7,154.14,154.04,4.85057375]
[1762471085945,30.38082769,154.15,154.02,0.64926632]
[1762471085946,4.85057375,154.13,154.05,5.55057375]
[1762471086279,4.85057375,154.14,154.08,4.85057375]
[1762471086439,7.76,154.21,154.13,4.85057375]
[1762471086643,7.76,154.21,154.16,4.85057375]
[1762471086858,4.85057375,154.22,154.13,0.64880295]
[1762471086859,7.76,154.22,154.17,4.85057375]
[1762471087369,4.85057375,154.23,154.18,0.7]
[1762471087551,4.85057375,154.22,154.18,0.7]
[1762471087873,4.08750027,154.29,154.19,4.85057375]
[1762471088075,4.85057375,154.26,154.2,6.4850843]
[1762471088273,4.85057375,154.25,154.2,7.1850843]
[1762471088456,4.85057375,154.25,154.21,0.7]
[1762471088777,4.85057375,154.28,154.22,4.85057375]
[1762471088980,4.85057375,154.27,154.21,5.55057375]
[1762471089157,12.61057375,154.28,154.22,5.55057375]
[1762471089549,27.77293941,154.3,154.23,0.7]
[1762471089757,4.85057375,154.28,154.23,0.7]
[1762471089980,4.85057375,154.28,154.23,5.55057375]
[1762471090282,13.17525113,154.32,154.23,5.55057375]
[1762471090283,6.48004051,154.33,154.26,4.85057375]
[1762471090571,6.48004051,154.33,154.27,4.85057375]
[1762471090572,19.09061426,154.33,154.27,4.85057375]
[1762471090786,12.61057375,154.33,154.27,4.85057375]
[1762471090954,12.61057375,154.33,154.27,0.7]
[1762471091152,9.78882769,154.32,154.2,16.8607568]
[1762471091378,4.85057375,154.27,154.23,0.7]
[1762471091772,4.85057375,154.28,154.23,5.55057375]
[1762471092074,4.85057375,154.29,154.23,5.55057375]
[1762471092273,7.76,154.31,154.26,4.85057375]
[1762471092582,7.76,154.31,154.19,21.24055048]
[1762471092583,4.85057375,154.28,154.23,5.55057375]
[1762471092966,7.76,154.3,154.26,4.85057375]
[1762471093285,12.03096006,154.32,154.27,5.55057375]
[1762471093286,7.76,154.31,154.27,5.55057375]
[1762471093661,7.76,154.31,154.28,0.7]
[1762471093869,4.08553864,154.37,154.3,4.85057375]
[1762471094082,7.76,154.34,154.31,4.85057375]
[1762471094583,7.76,154.34,154.31,5.55057375]
[1762471094779,7.76,154.34,154.32,0.7]
[1762471095082,7.76,154.34,154.26,4.85057375]
[1762471095083,6.36052644,154.33,154.26,4.85057375]
[1762471095283,4.85057375,154.3,154.27,0.7]
[1762471095482,4.85057375,154.31,154.27,0.7]
[1762471095776,4.85057375,154.29,154.27,0.7]
[1762471096188,4.85057375,154.28,154.24,0.7]
[1762471096475,4.85057375,154.28,154.24,7.1832748]
[1762471096676,4.85057375,154.28,154.25,0.7]
[1762471098059,4.85057375,154.31,154.25,0.7]
[1762471098359,4.85057375,154.31,154.26,6.4825619]
[1762471098684,4.85057375,154.3,154.26,6.4825619]
[1762471098858,4.85057375,154.3,154.27,0.7]
[1762471099672,20.592,154.34,154.27,0.7]
[1762471099965,4.85057375,154.32,154.27,0.7]
[1762471100582,4.85057375,154.32,154.28,6.48172154]
[1762471100882,4.85057375,154.3,154.27,7.18208391]
[1762471101072,4.85057375,154.29,154.25,0.7]
[1762471101277,4.85057375,154.27,154.25,0.7]
[1762471101587,4.85057375,154.29,154.25,0.7]
[1762471101773,4.85057375,154.28,154.25,0.7]
[1762471102382,4.85057375,154.29,154.25,0.7]
[1762471102971,4.85057375,154.28,154.25,0.7]
[1762471103574,4.85057375,154.29,154.25,0.7]
[1762471103775,4.85057375,154.26,154.21,0.72]
[1762471103972,31.25355544,154.3,154.21,0.72]
[1762471103973,4.85057375,154.25,154.21,0.72]
[1762471104291,4.85057375,154.23,154.19,7.20546526]
[1762471104488,4.85057375,154.2,154.15,7.2071878]
[1762471104673,4.85057375,154.16,154.09,0.72]
[1762471104874,4.85057375,154.16,154.11,4.85057375]
[1762471105077,4.85057375,154.16,154.12,6.48845055]
[1762471105275,4.85057375,154.16,154.12,0.72]
[1762471105473,4.85057375,154.16,154.13,0.72]
[1762471105886,4.85057375,154.15,154.13,0.72]
[1762471106989,4.85057375,154.16,154.13,7.20791808]
[1762471107293,4.85057375,154.16,154.13,0.72]
[1762471107664,4.85057375,154.15,154.09,16.22410193]
[1762471107974,4.85057375,154.13,154.11,0.72]
[1762471108171,4.85057375,154.13,154.09,6.48969497]
[1762471108388,4.85057375,154.13,154.1,0.72]
[1762471108773,4.85057375,154.14,154.1,0.72]
[1762471110092,0.7,154.19,154.12,4.85057375]
[1762471110392,9.78882769,154.21,154.13,6.48787338]
[1762471110393,35.53688097,154.21,154.13,6.48787338]
[1762471110567,4.85057375,154.18,154.13,11.33844713]
[1762471110774,4.85057375,154.18,154.14,0.72]
[1762471111091,0.7,154.26,154.17,4.85057375]
[1762471111266,1.32,154.27,154.2,4.85057375]
[1762471111470,4.85057375,154.24,154.19,4.85057375]
[1762471111977,4.85057375,154.24,154.2,0.72]
[1762471112171,0.7,154.26,154.2,0.72]
[1762471112172,4.85057375,154.23,154.2,0.72]
[1762471112576,4.85057375,154.23,154.19,6.48526535]
[1762471112783,4.85057375,154.23,154.19,7.20526535]
[1762471113774,11.33440148,154.23,154.19,0.72]
[1762471113975,5.55057375,154.22,154.18,6.48572858]
[1762471114175,4.85057375,154.22,154.18,6.48572858]
[1762471114379,4.85057375,154.24,154.2,6.4850843]
[1762471114580,4.85057375,154.24,154.2,0.72]
[1762471114980,4.85057375,154.23,154.18,11.33619231]
[1762471115279,4.85057375,154.22,154.18,7.20561856]
[1762471115691,4.85057375,154.21,154.17,6.48629552]
[1762471116071,1.51042531,154.24,154.18,0.72]
[1762471116275,4.85057375,154.22,154.18,5.57057375]
[1762471116504,4.85057375,154.22,154.19,6.48550489]
[1762471116681,4.85057375,154.22,154.19,7.20550489]
[1762471116880,4.85057375,154.22,154.19,0.72]
[1762471117409,6.48382425,154.23,154.17,11.33687187]
[1762471117588,4.85057375,154.2,154.14,0.65]
[1762471117908,4.85057375,154.2,154.15,5.50057375]
[1762471118079,0.66,154.21,154.15,5.50057375]
[1762471118286,4.85057375,154.2,154.15,5.50057375]
[1762471118482,4.85057375,154.19,154.15,0.65]
[1762471118788,4.85057375,154.18,154.13,5.50057375]
[1762471118992,4.85057375,154.18,154.14,6.48754279]
[1762471119179,4.85057375,154.18,154.14,7.13754279]
[1762471119378,5.51057375,154.19,154.15,0.65]
[1762471119595,0.66,154.19,154.15,5.50057375]
[1762471119790,20.592,154.17,154.09,0.65]
[1762471119989,4.85057375,154.16,154.1,5.50057375]
[1762471120280,4.85057375,154.16,154.11,4.85057375]
[1762471120503,19.09707745,154.17,154.12,11.3390243]
[1762471120807,12.61057375,154.17,154.12,11.9890243]
[1762471121111,7.76,154.17,154.13,5.50057375]
[1762471121492,7.76,154.17,154.14,5.50057375]
[1762471121880,11.33615695,154.19,154.14,5.50057375]
[1762471122087,11.99615695,154.19,154.14,5.50057375]
[1762471122290,0.66,154.19,154.14,5.50057375]
[1762471122603,5.51057375,154.19,154.15,6.4871878]
[1762471122793,11.99627353,154.19,154.15,6.4871878]
[1762471123496,11.99627353,154.19,154.14,5.50057375]
[1762471123805,4.85057375,154.17,154.13,6.48777949]
[1762471124004,6.48569978,154.19,154.13,7.13777949]
[1762471124197,4.85057375,154.18,154.14,0.65]
[1762471124602,11.33655109,154.18,154.14,7.13756572]
[1762471124909,5.51057375,154.18,154.14,7.13756572]
[1762471125106,5.51057375,154.18,154.14,11.98813947]
[1762471125796,0.66,154.18,154.14,11.98813947]
[1762471127090,0.66,154.18,154.14,7.13756572]
[1762471127410,0.66,154.18,154.14,11.98813947]
[1762471128704,0.66,154.18,154.14,4.85057375]
[1762471128705,7.14595495,154.18,154.14,4.85057375]
[1762471129011,0.66,154.18,154.14,11.98810447]
[1762471129905,9.78882769,154.22,154.14,11.98810447]
[1762471129906,0.66,154.23,154.18,6.48592554]
[1762471130209,0.66,154.23,154.2,4.85057375]
[1762471130600,7.14386031,154.23,154.19,4.85057375]
[1762471131112,7.14382625,154.23,154.19,5.50057375]
[1762471131886,7.14382625,154.23,154.19,4.85057375]
[1762471132309,7.14382625,154.23,154.19,11.33589306]
[1762471132506,7.14382625,154.23,154.19,12.03589306]
[1762471134299,0.72,154.22,154.18,4.85057375]
[1762471134700,0.72,154.22,154.18,5.55057375]
[1762471135216,0.72,154.22,154.18,4.85057375]
[1762471135512,7.20453168,154.22,154.18,5.55057375]
[1762471135906,6.48453168,154.22,154.18,11.33641685]
[1762471136106,0.72,154.21,154.18,4.85057375]
[1762471136501,12.59057375,154.2,154.15,4.85057375]
[1762471137020,0.72,154.19,154.15,5.55057375]
[1762471137200,5.57057375,154.19,154.14,11.33818241]
[1762471137597,14.22536392,154.2,154.15,5.55057375]
[1762471137809,19.07593767,154.2,154.15,5.55057375]
[1762471138017,0.72,154.19,154.15,5.55057375]
[1762471138903,7.20557128,154.19,154.15,12.0376481]
[1762471139198,7.20557128,154.19,154.15,7.18707435]
[1762471139804,0.72,154.18,154.14,11.33805007]
[1762471140307,5.57057375,154.18,154.12,11.3389969]
[1762471140512,4.85057375,154.16,154.09,0.7]
[1762471140719,4.85057375,154.16,154.11,4.85057375]
[1762471140919,13.29057375,154.17,154.12,6.48845055]
[1762471141224,13.29057375,154.17,154.12,11.3390243]
[1762471141416,13.29057375,154.17,154.12,12.0390243]
[1762471141618,5.57057375,154.16,154.1,0.7]
[1762471141816,19.05696419,154.17,154.11,5.55057375]
[1762471142012,5.57057375,154.16,154.11,5.55057375]
[1762471142212,4.85057375,154.16,154.11,5.55057375]
[1762471142419,19.05700946,154.17,154.12,5.55057375]
[1762471142620,19.77700946,154.17,154.12,0.7]
[1762471142809,5.57057375,154.16,154.11,4.85057375]
[1762471143212,0.72,154.15,154.11,11.33923007]
[1762471143407,0.72,154.15,154.11,12.03923007]
[1762471143915,19.77716714,154.17,154.12,0.7]
[1762471144106,4.85057375,154.16,154.12,0.7]
[1762471144305,8.29454298,154.16,154.11,14.0631993]
[1762471144607,0.72,154.15,154.11,14.7631993]
[1762471144807,0.72,154.15,154.11,7.18865632]
[1762471144808,8.29454298,154.15,154.11,7.18865632]
[1762471145021,8.29454298,154.15,154.1,6.48922939]
[1762471145222,14.92760866,154.14,154.07,8.27454298]
[1762471145423,7.57454298,154.11,154.07,0.7]
[1762471145727,7.57454298,154.11,154.01,14.06762784]
[1762471145728,7.57454298,154.08,154.01,14.06762784]
[1762471145935,7.57454298,154.06,154.01,6.49308486]
[1762471146139,7.57454298,154.04,154.0,71.2]
[1762471146325,15.29454298,154.04,154.0,71.2]
[1762471146513,0.72,154.03,154.0,71.2]
[1762471147030,7.72,154.04,154.01,8.27454298]
[1762471147230,17.36337067,154.02,154.0,71.2]
[1762471147422,7.57454298,154.01,154.0,71.2]
[1762471147606,7.57454298,154.02,154.0,71.2]
[1762471148031,7.57454298,154.03,154.0,71.2]
[1762471148231,7.72,154.02,154.0,71.9]
[1762471148436,7.72,154.02,154.0,71.2]
[1762471149208,8.29454298,154.06,154.01,7.57454298]
[1762471149408,7.72,154.04,154.01,8.27454298]
[1762471149611,7.57454298,154.1,154.03,7.57454298]
[1762471149935,7.72,154.11,154.07,7.57454298]
[1762471150326,0.72,154.1,154.06,7.57454298]
[1762471151025,7.57454298,154.09,154.04,8.27454298]
[1762471151227,8.44,154.11,154.05,8.27454298]
[1762471151415,16.01454298,154.11,154.05,8.27454298]
[1762471151617,7.57454298,154.1,154.05,8.27454298]
[1762471151848,8.44,154.11,154.05,8.27454298]
[1762471152138,7.57454298,154.1,154.05,8.27454298]
[1762471152635,8.29454298,154.1,154.05,8.27454298]
[1762471152818,7.57454298,154.1,154.05,8.27454298]
[1762471153020,8.29454298,154.1,154.05,8.27454298]
[1762471153324,8.29454298,154.09,154.05,6.49134499]
[1762471153636,7.57454298,154.06,154.01,7.57454298]
[1762471153834,7.74,154.07,154.04,7.57454298]
[1762471154226,7.74,154.07,154.05,0.7]
[1762471154841,14.06400512,154.1,154.05,7.57454298]
[1762471155014,8.46,154.09,154.05,7.57454298]
[1762471155341,8.46,154.09,154.06,6.49097754]
[1762471155342,7.74,154.09,154.06,6.49097754]
[1762471155544,0.81084587,154.16,154.08,7.57454298]
[1762471155545,7.57454298,154.15,154.08,7.57454298]
[1762471155723,7.57454298,154.15,154.06,23.41842139]
[1762471155724,7.57454298,154.12,154.07,7.57454298]
[1762471155925,0.72,154.14,154.08,7.57454298]
[1762471155926,7.74,154.11,154.08,7.57454298]
[1762471156151,7.74,154.11,154.08,8.27454298]
[1762471156440,7.74,154.11,154.07,7.57454298]
[1762471156648,7.74,154.11,154.07,8.27454298]
[1762471157131,7.74,154.11,154.08,7.57454298]
[1762471157531,8.29454298,154.1,154.05,7.57454298]
[1762471157839,7.57454298,154.08,154.03,14.76671167]
[1762471158047,7.57454298,154.07,154.02,14.06710575]
[1762471158358,15.31454298,154.06,154.02,6.49256277]
[1762471158641,15.31454298,154.06,154.01,14.06757727]
[1762471158945,15.31454298,154.06,154.0,79.64]
[1762471158946,8.29454298,154.05,154.0,85.26792713]
[1762471159146,7.57454298,154.05,154.0,85.96792713]
[1762471159441,14.78607182,154.05,154.0,85.96792713]
[1762471159923,0.72,154.05,154.01,7.57454298]
[1762471160118,0.72,154.05,154.01,8.27454298]
[1762471160526,0.72,154.08,154.02,8.27454298]
[1762471160741,7.74,154.06,154.02,8.27454298]
[1762471160945,15.31454298,154.06,154.02,0.7]
[1762471161250,16.03454298,154.06,154.01,7.57454298]
[1762471161455,22.52571794,154.06,154.01,7.57454298]
[1762471161649,7.57454298,154.04,154.0,71.2]
[1762471161826,7.57454298,154.03,154.0,71.2]
[1762471162436,8.27454298,154.07,154.02,7.57454298]
[1762471162631,7.74,154.06,154.02,8.24454298]
[1762471163020,7.74,154.06,154.03,7.57454298]
[1762471163251,8.27454298,154.13,154.05,7.57454298]
[1762471163420,6.4871878,154.15,154.1,6.48929266]
[1762471163421,14.76173078,154.15,154.1,6.48929266]
[1762471163620,14.06097787,154.17,154.11,7.57454298]
[1762471163821,21.80097787,154.17,154.11,7.57454298]
[1762471164043,21.80097787,154.17,154.12,7.57454298]
[1762471164533,8.44,154.17,154.12,8.24454298]
[1762471164725,7.74,154.17,154.14,7.57454298]
[1762471165237,7.74,154.17,154.14,8.24454298]
[1762471165540,22.50098279,154.17,154.12,7.57454298]
[1762471165850,22.50098279,154.17,154.11,14.73341456]
[1762471166743,22.50098279,154.17,154.09,7.57454298]
[1762471166744,7.57454298,154.14,154.09,7.57454298]
[1762471166940,16.97468874,154.19,154.13,7.57454298]
[1762471167149,7.74,154.18,154.13,7.57454298]
[1762471167449,7.74,154.18,154.14,7.57454298]
[1762471167749,7.74,154.18,154.14,8.24454298]
[1762471167926,7.74,154.18,154.15,7.57454298]
[1762471168122,15.31454298,154.18,154.13,7.57454298]
[1762471168329,8.27454298,154.17,154.12,7.57454298]
[1762471168848,0.7,154.17,154.13,14.06257256]
[1762471169226,7.57454298,154.15,154.1,14.73382088]
[1762471169427,15.31454298,154.15,154.1,8.24454298]
[1762471169627,16.01454298,154.15,154.1,14.73370731]
[1762471169844,16.01454298,154.15,154.1,0.67]
[1762471170049,0.7,154.14,154.1,7.57454298]
[1762471170561,0.7,154.14,154.09,14.06421395]
[1762471170765,14.06257256,154.13,154.08,14.06461198]
[1762471171053,7.74,154.12,154.08,7.160069]
[1762471171239,8.44,154.12,154.08,7.160069]
[1762471171444,7.74,154.12,154.08,7.160069]
[1762471171643,8.44,154.12,154.08,7.160069]
[1762471171866,7.74,154.12,154.1,7.57454298]
[1762471172031,7.74,154.15,154.11,7.57454298]
[1762471172228,7.74,154.15,154.12,7.57454298]
[1762471172440,7.74,154.15,154.11,7.57454298]
[1762471172824,0.7,154.14,154.1,7.57454298]
[1762471173648,21.80174003,154.15,154.1,8.24454298]
[1762471173847,16.01454298,154.15,154.1,8.24454298]
[1762471174053,22.50187887,154.15,154.1,8.24454298]
[1762471174838,22.50187887,154.15,154.1,14.73355477]
[1762471175338,7.57454298,154.14,154.06,16.22701738]
[1762471175529,7.57454298,154.12,154.07,14.73509922]
[1762471175863,7.57454298,154.12,154.06,14.06538301]
[1762471175864,7.57454298,154.11,154.06,14.06538301]
[1762471176063,7.57454298,154.1,154.05,8.24454298]
[1762471176270,7.57454298,154.08,154.03,0.67]
[1762471176431,7.72,154.09,154.03,8.24454298]
[1762471176432,15.29454298,154.09,154.03,8.24454298]
[1762471176832,6.49013499,154.08,154.03,8.24454298]
[1762471177258,6.49013499,154.08,154.04,0.67]
[1762471178875,7.15013499,154.08,154.04,0.67]
[1762471179060,6.49013499,154.08,154.04,8.24454298]
[1762471179267,21.78439501,154.09,154.04,8.24454298]
[1762471179453,22.44439501,154.09,154.04,8.24454298]
[1762471180153,14.86985203,154.09,154.04,14.73620695]
[1762471180869,14.86985203,154.09,154.04,8.24454298]
[1762471181884,14.86985203,154.09,154.04,14.73627772]
[1762471182071,0.81095108,154.14,154.06,7.57454298]
[1762471182268,7.14760866,154.14,154.1,7.57454298]
[1762471182446,14.72215164,154.14,154.09,7.57454298]
[1762471182650,7.57454298,154.13,154.08,7.57454298]
[1762471182851,7.57454298,154.11,154.05,0.66]
[1762471183152,14.20845055,154.12,154.04,7.57454298]
[1762471183153,7.57454298,154.09,154.04,7.57454298]
[1762471183361,15.29454298,154.09,154.04,7.57454298]
[1762471183573,0.66,154.08,154.04,7.57454298]
[1762471183889,15.95454298,154.09,154.04,7.57454298]
[1762471184057,8.38,154.09,154.05,0.66]
[1762471184875,6.49013499,154.08,154.05,0.66]
[1762471185173,6.49013499,154.08,154.04,7.57454298]
[1762471185381,7.15013499,154.08,154.04,0.66]
[1762471185681,6.49013499,154.08,154.04,8.23454298]
[1762471185870,7.15013499,154.08,154.04,0.66]
[1762471186173,7.15013499,154.08,154.04,7.15176131]
[1762471186756,0.66,154.07,154.02,7.57454298]
[1762471186956,14.21097754,154.06,154.01,14.72750415]
[1762471187468,21.78552052,154.06,154.01,7.57454298]
[1762471187664,8.23454298,154.05,154.0,86.49454298]
[1762471187865,8.23454298,154.05,154.0,78.77454298]
[1762471188173,8.23454298,154.05,154.0,79.43454298]
[1762471188595,8.23454298,154.05,154.0,71.86]
[1762471188759,8.23454298,154.05,154.0,85.92799293]
[1762471189091,7.15150376,154.05,154.01,0.66]
[1762471189472,0.66,154.05,154.01,8.23454298]
[1762471189784,7.72,154.06,154.02,7.57454298]
[1762471189982,8.38,154.06,154.02,7.57454298]
[1762471191061,14.87104578,154.06,154.01,14.06757903]
[1762471191274,14.87104578,154.06,154.01,14.72757903]
[1762471192262,7.7,154.05,154.01,14.72757903]
[1762471192967,14.1914082,154.05,154.01,14.72757903]
[1762471194863,14.8814082,154.05,154.01,14.72757903]
[1762471195062,0.69,154.04,154.0,71.2]
[1762471195266,7.57454298,154.01,154.0,71.2]
[1762471195580,15.27454298,154.01,154.0,71.2]
[1762471195781,15.96454298,154.01,154.0,71.2]
[1762471196098,7.7,154.01,154.0,71.2]
[1762471196393,8.39,154.01,154.0,71.2]
[1762471196569,7.7,154.01,154.0,71.2]
[1762471196892,8.39,154.01,154.0,71.2]
[1762471197295,7.7,154.01,154.0,71.2]
[1762471197605,22.45762784,154.01,154.0,71.2]
[1762471198170,14.88308486,154.01,154.0,71.2]
[1762471198391,7.7,154.01,154.0,71.2]
[1762471200592,0.69,154.09,154.0,85.95804947]
[1762471200805,7.7,154.08,154.01,0.69]
[1762471200993,7.57454298,154.07,154.02,7.57454298]
[1762471201196,6.49097754,154.06,154.01,7.18267886]
[1762471201392,7.7,154.05,154.02,7.57454298]
[1762471201715,15.96454298,154.05,154.0,78.77454298]
[1762471201884,0.69,154.04,154.0,71.89]
[1762471202084,0.69,154.04,154.0,79.46454298]
[1762471202692,0.69,154.04,154.0,85.95797962]
[1762471202989,0.69,154.04,154.0,79.46454298]
[1762471203511,7.18203768,154.04,154.0,79.46454298]
[1762471204206,7.18203768,154.04,154.0,85.95797782]
[1762471204402,0.69,154.09,154.02,7.57454298]
[1762471204607,7.57454298,154.13,154.07,7.57454298]
[1762471204798,15.27454298,154.13,154.08,7.57454298]
[1762471204990,8.26454298,154.12,154.07,8.26454298]
[1762471205612,7.17887158,154.11,154.03,0.69]
[1762471205809,7.57454298,154.05,154.0,71.89]
[1762471206005,15.27454298,154.05,154.0,79.46454298]
[1762471206307,7.7,154.05,154.01,0.69]
[1762471206489,7.7,154.05,154.02,4.86018358]
[1762471206804,7.7,154.05,154.01,5.55018358]
[1762471206993,7.7,154.05,154.01,0.69]
[1762471207198,8.39,154.05,154.01,0.69]
[1762471207585,6.49163444,154.05,154.01,0.69]
[1762471207781,0.69,154.1,154.04,4.86018358]
[1762471208007,0.69,154.1,154.05,4.86018358]
[1762471208008,6.26,154.1,154.05,4.86018358]
[1762471208187,6.95,154.1,154.05,4.86018358]
[1762471208388,0.69,154.09,154.05,5.55018358]
[1762471208597,6.26,154.1,154.06,5.55018358]
[1762471208790,6.26,154.1,154.07,4.86018358]
[1762471208999,6.26,154.1,154.07,5.55018358]
[1762471209420,6.26,154.1,154.08,0.69]
[1762471209593,6.48861606,154.12,154.08,12.04029952]
[1762471209917,0.69,154.11,154.07,4.86018358]
[1762471210113,7.17861606,154.12,154.08,0.69]
[1762471210418,7.17861606,154.12,154.08,5.55018358]
[1762471210596,7.17861606,154.12,154.07,4.86018358]
[1762471210799,12.56018358,154.13,154.04,7.7]
[1762471210800,14.18815205,154.13,154.08,4.86018358]
[1762471211001,14.18815205,154.13,154.09,4.86018358]
[1762471211324,4.86018358,154.11,154.06,4.86018358]
[1762471211618,4.86018358,154.11,154.06,5.55018358]
[1762471211794,6.48929266,154.1,154.07,0.69]
[1762471212314,11.34921871,154.11,154.07,0.69]
[1762471212519,7.7,154.1,154.06,4.86018358]
[1762471212701,7.7,154.1,154.06,11.35106665]
[1762471212895,7.7,154.1,154.07,0.69]
[1762471213203,8.39,154.1,154.05,12.04145359]
[1762471213416,7.7,154.1,154.06,4.86018358]
[1762471213718,8.39,154.1,154.06,5.55018358]
[1762471213920,14.8795507,154.1,154.06,12.04113116]
[1762471214321,14.8795507,154.1,154.07,4.86018358]
[1762471214521,7.7,154.1,154.08,4.86018358]
[1762471214818,7.7,154.1,154.08,5.55018358]
[1762471215016,14.87931578,154.1,154.07,4.86018358]
[1762471215212,14.18931578,154.1,154.06,6.49094758]
[1762471215422,14.18931578,154.1,154.06,4.86018358]
[1762471215603,14.87931578,154.1,154.06,5.55018358]
[1762471215802,5.55018358,154.09,154.01,16.23218858]
[1762471216000,6.49013499,154.08,154.03,4.86018358]
[1762471216321,6.49013499,154.08,154.04,4.86018358]
[1762471216521,7.7,154.1,154.05,4.86018358]
[1762471216824,6.48988395,154.09,154.05,4.86018358]
[1762471217016,7.17988395,154.09,154.05,4.86018358]
[1762471217218,11.35006753,154.09,154.04,4.86018358]
[1762471217407,4.86018358,154.07,154.02,5.55018358]
[1762471217611,7.7,154.06,154.03,4.86018358]
[1762471217808,7.7,154.06,154.04,4.86018358]
[1762471218007,14.191074,154.06,154.03,4.86018358]
[1762471218729,7.7,154.06,154.03,5.55018358]
[1762471219030,14.19106554,154.06,154.03,5.55018358]
[1762471219631,14.19106554,154.06,154.0,71.89]
[1762471219632,0.69,154.05,154.0,71.89]
[1762471219938,14.19106554,154.06,154.02,4.86018358]
[1762471220299,14.19106554,154.06,154.04,4.86018358]
[1762471220500,14.88106554,154.06,154.03,4.86018358]
[1762471220810,0.69,154.05,154.01,5.55018358]
[1762471221014,14.88106554,154.06,154.02,4.86018358]
[1762471221211,14.88106554,154.06,154.02,5.55018358]
[1762471222027,7.7,154.06,154.04,4.86018358]
[1762471222237,32.43778365,154.15,154.05,4.86018358]
[1762471222238,6.48858954,154.12,154.05,4.86018358]
[1762471222410,7.7,154.13,154.08,4.86018358]
[1762471222912,4.86018358,154.11,154.06,4.86018358]
[1762471223105,8.39,154.1,154.06,4.86018358]
[1762471223306,8.39,154.1,154.05,5.55018358]
[1762471223607,8.39,154.1,154.06,4.86018358]
[1762471223808,13.25018358,154.1,154.05,5.55018358]
[1762471224028,14.87954631,154.1,154.05,12.04121491]
[1762471224238,0.69,154.09,154.05,4.86018358]
[1762471224407,5.55018358,154.09,154.04,11.35179818]
[1762471224605,5.55018358,154.09,154.04,4.86018358]
[1762471224805,4.86018358,154.06,154.01,4.86018358]